{"text_format":"1","workbook":"xlsx","n_sheets":5,"sheets":["Concentration","Problem","MW","Sheet1","Sheet2"],"not_rendered":{"charts":0,"images":0,"macros":1,"external_links":0,"defined_names":17,"comments":0,"pivot_tables":0},"unopened":[],"bounds":{"document_bytes":16777216,"sheet_cells":100000,"rows_first":2000,"rows_last":500,"rows_between":2000,"halvings":0,"cell_chars":16384,"cell_head_chars":4096},"cells_cut":0,"cells_raw":0,"read":"whole","date_system":"1900"}

{"sheet":"Concentration","index":0,"n_rows":17,"n_cols":18,"rows_kept":17,"cut":false,"hidden":false,"merged":[[2,1,2,6],[1,0,1,6],[0,0,0,6],[7,3,16,6]]}
["Solutions"]
[{"$f":"\"ใส่หมายเลขข้อที่ต้องการในช่องสีชมพู (ข้อ 1-\"&MAX(Problem!A1:A47)&\")\"","v":"ใส่หมายเลขข้อที่ต้องการในช่องสีชมพู (ข้อ 1-10)"}]
[1,{"$f":"IF(ISNUMBER(ProbNO),HLOOKUP(\"detail\",ProbTab,MATCH(ProbNO,ProbID,0),0))","v":"เติม NaCl 5 g ในขวดเชิงปริมาตร และเติมน้ำจนได้สารละลาย 1.5 L และมีความหนาแน่น 1.1 g/mL จงหาความเข้มข้น"},null,null,null,null,null,null,"Error =",0.05]
["Types","Chemicals","MW\n(g/mol)","Density\n(g/mL)","mass\n(g)","Amount\n(mol)","Volume\n(mL)",null,"Type","mass\n(g)","amount\n(mol)","Volume\n(ml)","Mass","g","mol","ml","MW\n(g/mol)","d\n(g/ml)"]
["Solute (A)",null,{"$f":"IF(ISTEXT(B5),IF(HLOOKUP(\"MW\",ChemTab,MATCH(B5,ChemID,0),0)>0,HLOOKUP(\"MW\",ChemTab,MATCH(B5,ChemID,0),0),\"\"),\"\")","v":""},{"$f":"IF(ISTEXT(B5),IF(HLOOKUP(\"density\",ChemTab,MATCH(B5,ChemID,0),0)>0,HLOOKUP(\"density\",ChemTab,MATCH(B5,ChemID,0),0),\"\"),\"\")","v":""},null,null,null,null,"Solute",{"$f":"IF(ISNUMBER(ProbNO),IF(ISNUMBER(HLOOKUP(\"M1\",ProbTab,MATCH(ProbNO,ProbID,0),0)),HLOOKUP(\"M1\",ProbTab,MATCH(ProbNO,ProbID,0),0),\"\"))","v":5},{"$f":"IF(ISNUMBER(ProbNO),IF(ISNUMBER(HLOOKUP(\"A1\",ProbTab,MATCH(ProbNO,ProbID,0),0)),HLOOKUP(\"A1\",ProbTab,MATCH(ProbNO,ProbID,0),0),\"\"))","v":""},{"$f":"IF(ISNUMBER(ProbNO),IF(ISNUMBER(HLOOKUP(\"V1\",ProbTab,MATCH(ProbNO,ProbID,0),0)),HLOOKUP(\"V1\",ProbTab,MATCH(ProbNO,ProbID,0),0),\"\"))","v":""},{"$f":"IF(ISNUMBER(J5),J5,IF(AND(ISNUMBER(K5),ISNUMBER(MW_1)),K5*MW_1,IF(AND(ISNUMBER(L5),ISNUMBER(D_1)),L5*D_1,IF(AND(ISNUMBER(J7),ISNUMBER(J6)),J7-J6,\"X\"))))","v":5},{"$f":"IF(ISNUMBER(M5),M5,IF(AND(ISNUMBER(M6),ISNUMBER(M7)),M7-M6,\"NA\"))","v":5},{"$f":"IF(ISNUMBER(K5),K5,IF(AND(ISNUMBER(N5),ISNUMBER(MW_A)),N5/MW_A,\"NA\"))","v":"NA"},{"$f":"IF(ISNUMBER(L5),L5,IF(AND(ISNUMBER(N5),ISNUMBER(d_A)),N5/d_A,\"NA\"))","v":"NA"},{"$f":"IF(ISNUMBER(ProbNO),IF(ISNUMBER(HLOOKUP(\"MW1\",ProbTab,MATCH(ProbNO,ProbID,0),0)),HLOOKUP(\"MW1\",ProbTab,MATCH(ProbNO,ProbID,0),0),\"\"))","v":58.5},{"$f":"IF(AND(ISNUMBER(ProbNO),S5<>\"x\"),IF(ISNUMBER(HLOOKUP(\"d1\",ProbTab,MATCH(ProbNO,ProbID,0),0)),HLOOKUP(\"d1\",ProbTab,MATCH(ProbNO,ProbID,0),0),\"\"),IF(ISNUMBER(D5),D5,\"\"))","v":""}]
["Solvent (B)",null,{"$f":"IF(ISTEXT(B6),IF(HLOOKUP(\"MW\",ChemTab,MATCH(B6,ChemID,0),0)>0,HLOOKUP(\"MW\",ChemTab,MATCH(B6,ChemID,0),0),\"\"),\"\")","v":""},{"$f":"IF(ISTEXT(B6),IF(HLOOKUP(\"density\",ChemTab,MATCH(B6,ChemID,0),0)>0,HLOOKUP(\"density\",ChemTab,MATCH(B6,ChemID,0),0),\"\"),\"\")","v":""},null,null,null,null,"Solvent",{"$f":"IF(ISNUMBER(ProbNO),IF(ISNUMBER(HLOOKUP(\"M2\",ProbTab,MATCH(ProbNO,ProbID,0),0)),HLOOKUP(\"M2\",ProbTab,MATCH(ProbNO,ProbID,0),0),\"\"))","v":""},{"$f":"IF(ISNUMBER(ProbNO),IF(ISNUMBER(HLOOKUP(\"A2\",ProbTab,MATCH(ProbNO,ProbID,0),0)),HLOOKUP(\"A2\",ProbTab,MATCH(ProbNO,ProbID,0),0),\"\"))","v":""},{"$f":"IF(ISNUMBER(ProbNO),IF(ISNUMBER(HLOOKUP(\"V2\",ProbTab,MATCH(ProbNO,ProbID,0),0)),HLOOKUP(\"V2\",ProbTab,MATCH(ProbNO,ProbID,0),0),\"\"))","v":""},{"$f":"IF(ISNUMBER(J6),J6,IF(AND(ISNUMBER(K6),ISNUMBER(MW_2)),K6*MW_2,IF(AND(ISNUMBER(L6),ISNUMBER(D_2)),L6*D_2,IF(AND(ISNUMBER(J5),ISNUMBER(J7)),J7-J5,\"X\"))))","v":"X"},{"$f":"IF(ISNUMBER(M6),M6,IF(AND(ISNUMBER(M7),ISNUMBER(M5)),M7-M5,\"NA\"))","v":1645.0000000000002},{"$f":"IF(ISNUMBER(K6),K6,IF(AND(ISNUMBER(N6),ISNUMBER(MW_B)),N6/MW_B,\"NA\"))","v":"NA"},{"$f":"IF(ISNUMBER(L6),L6,IF(AND(ISNUMBER(N6),ISNUMBER(d_B)),N6/d_B,\"NA\"))","v":"NA"},{"$f":"IF(ISNUMBER(ProbNO),IF(ISNUMBER(HLOOKUP(\"MW2\",ProbTab,MATCH(ProbNO,ProbID,0),0)),HLOOKUP(\"MW2\",ProbTab,MATCH(ProbNO,ProbID,0),0),\"\"))","v":""},{"$f":"IF(AND(ISNUMBER(ProbNO),S6<>\"x\"),IF(ISNUMBER(HLOOKUP(\"d2\",ProbTab,MATCH(ProbNO,ProbID,0),0)),HLOOKUP(\"d2\",ProbTab,MATCH(ProbNO,ProbID,0),0),\"\"),IF(ISNUMBER(D6),D6,\"\"))","v":""}]
["Solution (C )",null,null,null,null,null,null,null,"Solution",{"$f":"IF(ISNUMBER(ProbNO),IF(ISNUMBER(HLOOKUP(\"M3\",ProbTab,MATCH(ProbNO,ProbID,0),0)),HLOOKUP(\"M3\",ProbTab,MATCH(ProbNO,ProbID,0),0),\"\"))","v":""},{"$f":"IF(ISNUMBER(ProbNO),IF(ISNUMBER(HLOOKUP(\"A3\",ProbTab,MATCH(ProbNO,ProbID,0),0)),HLOOKUP(\"A3\",ProbTab,MATCH(ProbNO,ProbID,0),0),\"\"))","v":""},{"$f":"IF(ISNUMBER(ProbNO),IF(ISNUMBER(HLOOKUP(\"V3\",ProbTab,MATCH(ProbNO,ProbID,0),0)),HLOOKUP(\"V3\",ProbTab,MATCH(ProbNO,ProbID,0),0),\"\"))","v":1500},{"$f":"IF(ISNUMBER(J7),J7,IF(AND(ISNUMBER(L7),ISNUMBER(D_3)),L7*D_3,IF(AND(ISNUMBER(J5),ISNUMBER(J6)),J5+J6,\"X\")))","v":1650.0000000000002},{"$f":"IF(ISNUMBER(M7),M7,IF(AND(ISNUMBER(M5),ISNUMBER(M6)),M5+M6,\"NA\"))","v":1650.0000000000002},{"$f":"IF(COUNT(O5:O6)=2,SUM(O5:O6),\"NA\")","v":"NA"},{"$f":"IF(ISNUMBER(L7),L7,IF(AND(ISNUMBER(N7),ISNUMBER(d_C)),N7/d_C,\"NA\"))","v":1500},null,{"$f":"IF(ISNUMBER(ProbNO),IF(ISNUMBER(HLOOKUP(\"d3\",ProbTab,MATCH(ProbNO,ProbID,0),0)),HLOOKUP(\"d3\",ProbTab,MATCH(ProbNO,ProbID,0),0),\"\"))","v":1.1000000000000001}]
[null,null,null,"ข้อแนะนำ\n1 เลือกชนิดสารเคมี หากไม่ระบุ ให้เลือก Any\n2 ใส่ข้อมูลจากโจทย์ในช่องสีเหลืองให้ถูกต้อง หากถูกต้องสีเซลจะเปลี่ยน\n3 คำนวณหาความเข้มข้นจากข้อมูลที่มีโดยในช่องสีฟ้า \n4 ค่าคงที่ที่กำหนดให้แล้ว (ใช้ได้หากมีค่าปรากฏอยู่) ได้แก่ \nMW_A , MW_B คือ MW ของตัวถูกละลายและตัวทำละลาย\nd_A, d_B, d_C คือ ความหนาแน่นของตัวถูกละลาย ตัวทำละลาย และสารละลาย "]
[]
["Conc.","Answers",null,null,null,null,null,null,"Answers"]
["%W/W=",null,{"$f":"IF(AND(ISNUMBER(I11),LEN(B11)>0),IF(ABS(B11-I11)<0.05,\"Correct\",\"Wrong\"),\"\")","v":""},null,null,null,null,null,{"$f":"IF(AND(ISNUMBER(N5),ISNUMBER(N7)),N5/N7,\"NA\")","v":3.0303030303030299E-3}]
["%W/V=",null,{"$f":"IF(AND(ISNUMBER(I12),LEN(B12)>0),IF(ABS(B12-I12)<0.05,\"Correct\",\"Wrong\"),\"\")","v":""},null,null,null,null,null,{"$f":"IF(AND(ISNUMBER(P7),ISNUMBER(N5)),N5/P7,\"NA\")","v":3.3333333333333335E-3}]
["%V/V=",null,"",null,null,null,null,null,{"$f":"IF(AND(ISNUMBER(P5),ISNUMBER(P7)),P5/P7,\"NA\")","v":"NA"}]
["M=",null,"",null,null,null,null,null,{"$f":"IF(AND(ISNUMBER(O5),ISNUMBER(P7)),O5/P7*1000,\"NA\")","v":"NA"}]
["m=",null,"",null,null,null,null,null,{"$f":"IF(AND(ISNUMBER(O5),ISNUMBER(N6)),O5/N6*1000,\"NA\")","v":"NA"}]
["XA=",null,"",null,null,null,null,null,{"$f":"IF(AND(ISNUMBER(O5),ISNUMBER(O7)),O5/O7,\"NA\")","v":"NA"}]
["XB=",null,"",null,null,null,null,null,{"$f":"IF(AND(ISNUMBER(O6),ISNUMBER(O7)),O6/O7,\"NA\")","v":"NA"}]

{"sheet":"Problem","index":1,"n_rows":47,"n_cols":18,"rows_kept":47,"cut":false,"hidden":false,"merged":[]}
["No","Detail","S1","S2","D3","M1","A1","V1","M2","A2","V2","M3","A3","V3","MW1","D1","MW2","D2"]
[1,"เติม NaCl 5 g ในขวดเชิงปริมาตร และเติมน้ำจนได้สารละลาย 1.5 L และมีความหนาแน่น 1.1 g/mL จงหาความเข้มข้น","NaCl","H2O",1.1000000000000001,5,null,null,null,null,null,null,null,1500,{"$f":"IF(ISTEXT($C2),IF(ISNUMBER(HLOOKUP(\"MW\",ChemTab,MATCH($C2,ChemID,0),0)),HLOOKUP(\"MW\",ChemTab,MATCH($C2,ChemID,0),0),\"\"),\"\")","v":58.5},{"$f":"IF(ISTEXT($C2),IF(ISNUMBER(HLOOKUP(\"Density\",ChemTab,MATCH($C2,ChemID,0),0)),HLOOKUP(\"Density\",ChemTab,MATCH($C2,ChemID,0),0),\"\"),\"\")","v":""},{"$f":"IF(ISTEXT($D2),IF(ISNUMBER(HLOOKUP(\"MW\",ChemTab,MATCH($D2,ChemID,0),0)),HLOOKUP(\"MW\",ChemTab,MATCH($D2,ChemID,0),0),\"\"),\"\")","v":""},{"$f":"IF(ISTEXT($D2),IF(ISNUMBER(HLOOKUP(\"Density\",ChemTab,MATCH($D2,ChemID,0),0)),HLOOKUP(\"Density\",ChemTab,MATCH($D2,ChemID,0),0),\"\"),\"\")","v":""}]
[2,"สารละลายประกอบด้วย C2H5OH 20 g ในสารละลาย 500 mL","C2H5OH(l)","Any",null,20,null,null,null,null,null,null,null,500,46,0.78500000000000003,"",""]
[3,"สารละลาย NaOH(aq) 30%W/W มีความหนาแน่น 2g/mL ","NaOH","H2O(l)",2,30,null,null,null,null,null,100,null,null,39.989999999999995,"",18,1]
[4,"สารละลายประกอบด้วย NaOH 0.5 mol ในน้ำโดยสารละลายที่ได้มีปริมาตร 1.5 L และความหนาแน่น 1.02 g/mL","NaOH","H2O(l)",1.02,null,0.5,null,null,null,null,null,null,1500,39.989999999999995,"",18,1]
[5,"KOH 0.5 mol เติมน้ำ 200 g ได้สารละลายที่มีความหนาแน่น 1.12 g/mL","KOH","H2O(l)",1.1200000000000001,null,0.5,null,200,null,null,null,null,null,56.1,"",18,1]
[6,"C2H5OH 1000 mL เติม NaOH ลงไปจนได้สารละลาย 1 kg และสารละลายมีความหนาแน่น 0.98 g/mL","NaOH","C2H5OH(l)",0.98,null,null,null,null,null,1000,1000,null,null,39.989999999999995,"",46,0.78500000000000003]
[7,"สารละลาย 0.2 M NaOH ใน C2H5OH มีความหนาแน่น 0.85 g/mL ","NaOH","C2H5OH(l)",0.85,null,0.2,null,null,null,null,null,null,1000,39.989999999999995,"",46,0.78500000000000003]
[8,"สารละลาย NaCl(aq) 0.7 molal","NaCl","H2O(l)",null,null,0.7,null,1000,null,null,null,null,null,58.5,"",18,1]
[9,"ผสม C2H5OH 50 mL และ H2O 500 mL ได้สารละลายปริมาตร 525 mL","C2H5OH(l)","H2O(l)",null,null,null,50,null,null,500,null,null,525,46,0.78500000000000003,18,1]
[10,"CaOH 25 g เติม C2H5OH จนได้สารละลายปริมาตร 750 mL ซึ่งหนัก 765 g ","CaOH","C2H5OH(l)",null,25,null,null,null,null,null,765,null,750,57.08,"",46,0.78500000000000003]
[null,null,null,null,null,null,null,null,null,null,null,null,null,null,"","","",""]
[null,null,null,null,null,null,null,null,null,null,null,null,null,null,"","","",""]
[null,null,null,null,null,null,null,null,null,null,null,null,null,null,"","","",""]
[null,null,null,null,null,null,null,null,null,null,null,null,null,null,"","","",""]
[null,null,null,null,null,null,null,null,null,null,null,null,null,null,"","","",""]
[null,null,null,null,null,null,null,null,null,null,null,null,null,null,"","","",""]
[null,null,null,null,null,null,null,null,null,null,null,null,null,null,"","","",""]
[null,null,null,null,null,null,null,null,null,null,null,null,null,null,"","","",""]
[null,null,null,null,null,null,null,null,null,null,null,null,null,null,"","","",""]
[null,null,null,null,null,null,null,null,null,null,null,null,null,null,"","","",""]
[null,null,null,null,null,null,null,null,null,null,null,null,null,null,"","","",""]
[null,null,null,null,null,null,null,null,null,null,null,null,null,null,"","","",""]
[null,null,null,null,null,null,null,null,null,null,null,null,null,null,"","","",""]
[null,null,null,null,null,null,null,null,null,null,null,null,null,null,"","","",""]
[null,null,null,null,null,null,null,null,null,null,null,null,null,null,"","","",""]
[null,null,null,null,null,null,null,null,null,null,null,null,null,null,"","","",""]
[null,null,null,null,null,null,null,null,null,null,null,null,null,null,"","","",""]
[null,null,null,null,null,null,null,null,null,null,null,null,null,null,"","","",""]
[null,null,null,null,null,null,null,null,null,null,null,null,null,null,"","","",""]
[null,null,null,null,null,null,null,null,null,null,null,null,null,null,"","","",""]
[null,null,null,null,null,null,null,null,null,null,null,null,null,null,"","","",""]
[null,null,null,null,null,null,null,null,null,null,null,null,null,null,"","","",""]
[null,null,null,null,null,null,null,null,null,null,null,null,null,null,"","","",""]
[null,null,null,null,null,null,null,null,null,null,null,null,null,null,"","","",""]
[null,null,null,null,null,null,null,null,null,null,null,null,null,null,"","","",""]
[null,null,null,null,null,null,null,null,null,null,null,null,null,null,"","","",""]
[null,null,null,null,null,null,null,null,null,null,null,null,null,null,"","","",""]
[null,null,null,null,null,null,null,null,null,null,null,null,null,null,"","","",""]
[null,null,null,null,null,null,null,null,null,null,null,null,null,null,"","","",""]
[null,null,null,null,null,null,null,null,null,null,null,null,null,null,"","","",""]
[null,null,null,null,null,null,null,null,null,null,null,null,null,null,"","","",""]
[null,null,null,null,null,null,null,null,null,null,null,null,null,null,"","","",""]
[null,null,null,null,null,null,null,null,null,null,null,null,null,null,"","","",""]
[null,null,null,null,null,null,null,null,null,null,null,null,null,null,"","","",""]
[null,null,null,null,null,null,null,null,null,null,null,null,null,null,"","","",""]
[null,null,null,null,null,null,null,null,null,null,null,null,null,null,"","","",""]

{"sheet":"MW","index":2,"n_rows":51,"n_cols":8,"rows_kept":51,"cut":false,"hidden":false,"merged":[[22,0,22,1]]}
["Chemicals","MW","Density","Tb","Kb","Tf","Kf"]
["Any",null,null,null,null,null,null,"a"]
["CH3OCH3(l)",46,0.71930000000000005,56.2,1.67,"–94.8",null,"l"]
["C2H5OH(l)",46,0.78500000000000003,78.400000000000006,1.19,"–114.6","–1.99","l"]
["CCl3H(l)",119.5,1.4830000000000001,61.2,3.88,"–63.5","–4.90","l"]
["CCl4(l)",154,1.5867,76.8,4.88,"–22.8","–29.8","l"]
["CH3COOH(l)",44,1.0489999999999999,118.1,3.07,16.600000000000001,-3.9,"l"]
["H2O(l)",18,1,100,0.51200000000000001,0,"–1.86","l"]
["HNO3(l)",{"$f":"1+14+16*3","v":63},null,null,null,null,null,"l"]
["CaOH",{"$f":"40.08+16+1","v":57.08},null,null,null,null,null,"s"]
["KCl",{"$f":"39.1+35.5","v":74.599999999999994},null,null,null,null,null,"s"]
["KOH",{"$f":"39.1+16+1","v":56.1},null,null,null,null,null,"s"]
["NaCl",58.5,null,null,null,null,null,"s"]
["NaOH",{"$f":"22.99+16+1","v":39.989999999999995},null,null,null,null,null,"s"]
[]
[]
[]
[]
[]
[]
[]
[]
["Concentrations",null,"Molarity","%W/W"]
["%W/W=",0.01,{"$f":"IF(ISNUMBER(B24),IF(AND(ISNUMBER(B24),ISNUMBER(MW_1),ISNUMBER(D_3)),B24/MW_1*D_3*1000,\"NA\"),\"\")","v":0.18803418803418806},{"$f":"IF(ISNUMBER(B24),B24,\"\")","v":0.01}]
["%W/V=",null,{"$f":"IF(ISNUMBER(B25),IF(AND(ISNUMBER(B25),ISNUMBER(MW_1)),B25/MW_1*1000,\"NA\"),\"\")","v":""},{"$f":"IF(ISNUMBER(B25),IF(AND(ISNUMBER(D_3)),B25/(D_3),\"NA\"),\"\")","v":""}]
["%V/V=",null,{"$f":"IF(ISNUMBER(B26),IF(AND(ISNUMBER(B26),ISNUMBER(MW_1),ISNUMBER(D_1)),B26/MW_1*D_1*1000,\"NA\"),\"\")","v":""},{"$f":"IF(ISNUMBER(B26),IF(AND(ISNUMBER(D_1),ISNUMBER(D_3)),B26*D_1/D_3,\"NA\"),\"\")","v":""}]
["M=",null,{"$f":"IF(ISNUMBER(B27),B27,\"\")","v":""},{"$f":"IF(ISNUMBER(B27),IF(AND(ISNUMBER(MW_1),ISNUMBER(D_3)),B27*MW_1/(1000*D_3),\"NA\"),\"\")","v":""}]
["m=",null,{"$f":"IF(ISNUMBER(B28),IF(AND(ISNUMBER(B28),ISNUMBER(MW_1),ISNUMBER(D_3)),B28/((1000+B28*MW_1)/D_3)*1000,\"NA\"),\"\")","v":""},{"$f":"IF(ISNUMBER(B28),IF(AND(ISNUMBER(MW_1),ISNUMBER(MW_1)),B28*MW_1/(1000+B28*MW_1),\"NA\"),\"\")","v":""}]
["XA=",null,{"$f":"IF(ISNUMBER(B29),IF(AND(ISNUMBER(B29),ISNUMBER(MW_1),ISNUMBER(MW_2),ISNUMBER(D_3)),B29*1000/((B29*MW_1+(1-B29)*MW_2)/D_3),\"NA\"),\"\")","v":""},{"$f":"IF(ISNUMBER(B29),IF(AND(ISNUMBER(MW_1),ISNUMBER(MW_2)),B29*MW_1/((1-B29)*MW_2+B29*MW_1),\"NA\"),\"\")","v":""}]
[]
[]
[null,"Solvent","Boiling Point (°C)","Kb(°C/(mol kg-1))","Freezing Point (°C)","Kf (°C/(mol kg-1))","Data source"]
[null,"Aniline",184.3,3.69,"–5.96","–5.87","Kb & Kf[1]"]
[null,"Lauric Acid",298.89999999999998,null,44,"–3.9"]
[null,"Acetic acid",118.1,3.07,16.600000000000001,"–3.90","Kb[1] Kf[2]"]
[null,"Acetone",56.2,1.67,"–94.8",null,"Kb[3]"]
[null,"Benzene",80.099999999999994,2.65,5.5,"–5.12","Kb & Kf[2]"]
[null,"Bromobenzene",156,6.26]
[null,"Camphor",204,5.95,179,"–40","Kf[2]"]
[null,"Carbon disulfide",46.2,2.34,"–111.5","–3.83"]
[null,"Carbon tetrachloride",76.8,4.88,"–22.8","–29.8","Kb & Kf[1]"]
[null,"Chloroform",61.2,3.88,"–63.5","–4.90","Kb & Kf[1]"]
[null,"Cyclohexane",80.739999999999995,2.79,6.55,"–20.2"]
[null,"Diethyl ether",34.5,2.16,"–116.2","–1.79","Kb & Kf[1]"]
[null,"Ethanol",78.400000000000006,1.19,"–114.6","–1.99","Kb[2]"]
[null,"Ethylene bromide",130,6.43,9.9740000000000002,"–12.5","Kb & Kf[1]"]
[null,"Formic acid",101,2.4,8,"–2.77","Kb & Kf[1]"]
[null,"Naphthalene",217.9,null,80.2,"–6.80"]
[null,"Nitrobenzene",210.8,5.24,5.7,"–7.00"]
[null,"Phenol",181.75,3.6,43,"–7.27","Kf[2] Kb[1]"]
[null,"Water",100,0.51200000000000001,0,"–1.86","Kb & Kf[2]"]

{"sheet":"Sheet1","index":3,"n_rows":0,"n_cols":0,"rows_kept":0,"cut":false,"hidden":true,"merged":[]}

{"sheet":"Sheet2","index":4,"n_rows":10,"n_cols":21,"rows_kept":10,"cut":false,"hidden":false,"merged":[[6,18,6,20],[6,1,6,3],[6,4,6,6],[6,7,6,9],[6,12,6,14],[6,15,6,17]]}
[]
[null,null,"Chemicals","MW","Tf","kf","Tb","kb","density"]
[null,"Solute","Any",{"$f":"IF(ISTEXT($C3),IF(HLOOKUP(D$2,ChemTab,MATCH($C3,ChemID,0),0)>0,HLOOKUP(D$2,ChemTab,MATCH($C3,ChemID,0),0),\"\"),\"\")","v":""},"","","","",""]
[null,"Solvent","H2O(l)",18,"","–1.86",100,0.51200000000000001,1]
[]
[null,"DT(f/b)=",null,"k(f/b)=",null,"dsolvent",1.5,null,null,null,null,null,null,null,null,"density=",{"$f":"IF(ISNUMBER(I4),I4,IF(ISNUMBER(G6),G6,\"\"))","v":1}]
[null,"Solute",null,null,"Solute",null,null,"Solution",null,null,null,null,"Solute",null,null,"Solute",null,null,"Solution"]
[null,"MW(g/mol)","m(g)","Mol","m(g)","V(mL)","Mol","molality","m(g)","V(mL)",null,null,"MW(g/mol)","m(g)","Mol","m(g)","V(mL)","Mol","molality","m(g)","V(mL)"]
["Info",null,null,1.5,null,null,null,1,null,null,null,null,{"$f":"IF(ISNUMBER(D3),D3,\"\")","v":""},{"$f":"IF(ISNUMBER(C9),C9,\"\")","v":""},{"$f":"IF(ISNUMBER(D9),D9,\"\")","v":1.5},"","","",1,"",""]
[null,null,null,null,null,null,null,null,null,null,null,null,{"$f":"IF(ISNUMBER(M9),M9,IF(AND(ISNUMBER(O9),ISNUMBER(N9)),N9/O9,\"\"))","v":""},{"$f":"IF(ISNUMBER(N9),N9,IF(AND(ISNUMBER(M9),ISNUMBER(O9)),M9*O9,\"\"))","v":""},{"$f":"IF(ISNUMBER(O9),O9,IF(AND(ISNUMBER(N9),ISNUMBER(M9)),N9*M9,IF(AND(ISNUMBER(S9),ISNUMBER(P9)),S9*P9/1000,\"\")))","v":1.5},{"$f":"IF(ISNUMBER(P9),P9,IF(AND(ISNUMBER(Q9),ISNUMBER($Q$6)),Q9*$Q$6,IF(AND(ISNUMBER(S9),ISNUMBER(O9)),O9/S9*1000,\"\")))","v":1500},{"$f":"IF(ISNUMBER(Q9),Q9,IF(AND(ISNUMBER(P9),ISNUMBER($Q$6)),P9/$Q$6,\"\"))","v":""}]